fUST/lending_fUST_20250729
["ID","MTS","AMOUNT","RATE_DAILY","PERIOD"]
[375957675,1753799442762,-460.0,0.00018866,2]
[375957676,1753799442771,-2557.94,0.00018866,2]
[375957677,1753799442781,-460.0,0.00018866,2]
[375957678,1753799442791,-547.29,0.00018866,2]
[375957679,1753799442800,-460.0,0.00018866,2]
[375957680,1753799442810,-460.0,0.00018866,2]
[375957681,1753799442819,-752.14,0.00018866,2]
[375957682,1753799442829,-460.0,0.00018866,2]
[375957683,1753799442838,-2201.08,0.00018866,2]
[375957684,1753799442848,-460.0,0.00018866,2]
[375957685,1753799442857,-1884.9,0.00018866,2]
[375957686,1753799442867,-463.25,0.00018866,2]
[375957687,1753799442877,-456.50041702,0.00018866,2]
[375957688,1753799442886,-825.89,0.00018866,2]
[375957689,1753799442895,-374.30024023,0.00018866,2]
[375957690,1753799442905,-460.0,0.00018866,2]
[375957691,1753799442914,-465.44376977,0.00018866,2]
[375957692,1753799442923,-460.0,0.00018866,2]
[375957693,1753799442932,-460.0,0.00018866,2]
[375957694,1753799442942,-710.79,0.00018866,2]
[375957695,1753799442952,-460.0,0.00018866,2]
[375957696,1753799442961,-460.0,0.00018866,2]
[375957697,1753799442971,-500.0,0.00018867,2]
[375957698,1753799442980,-500.0,0.00018867,2]
[375957699,1753799442990,-500.0,0.00018867,2]
[375957700,1753799442999,-500.0,0.00018867,2]
[375957701,1753799443008,-2377.22,0.00018867,2]
[375957702,1753799443018,-1918.6,0.00018867,2]
[375957703,1753799443027,-460.0,0.00018867,2]
[375957704,1753799443036,-460.0,0.00018868,2]
[375957705,1753799443045,-460.0,0.00018868,2]
[375957706,1753799443053,-460.0,0.00018868,2]
[375957707,1753799443062,-460.0,0.00018868,2]
[375957708,1753799443070,-460.0,0.00018868,2]
[375957709,1753799443079,-460.0,0.00018868,2]
[375957710,1753799443089,-460.0,0.00018868,2]
[375957711,1753799443098,-460.0,0.00018868,2]
[375957712,1753799443108,-460.0,0.00018868,2]
[375957713,1753799443117,-460.0,0.00018868,2]
[375957714,1753799443127,-460.0,0.00018868,2]
[375957715,1753799443136,-460.0,0.00018868,2]
[375957716,1753799443146,-460.0,0.00018868,2]
[375957717,1753799443155,-460.0,0.00018868,2]
[375957718,1753799443164,-460.0,0.00018868,2]
[375957719,1753799443173,-460.0,0.00018868,2]
[375957720,1753799443183,-460.0,0.00018868,2]
[375957721,1753799443192,-460.0,0.00018868,2]
[375957722,1753799443201,-460.0,0.00018868,2]
[375957723,1753799443211,-460.0,0.00018868,2]
[375957724,1753799443221,-460.0,0.00018868,2]
[375957725,1753799443230,-406.31459455,0.00018868,2]
[375957726,1753799443241,-4332.79,0.00018868,2]
[375957727,1753799443250,-336.8599395,0.00018868,2]
[375957728,1753799443259,-460.0,0.00018868,2]
[375957729,1753799443268,-460.0,0.00018868,2]
[375957730,1753799443277,-460.0,0.00018868,2]
[375957731,1753799443286,-460.0,0.00018868,2]
[375957732,1753799443295,-460.0,0.00018868,2]
[375957733,1753799443306,-460.0,0.00018868,2]
[375957734,1753799443315,-460.0,0.00018868,2]
[375957735,1753799443325,-460.0,0.00018868,2]
[375957736,1753799443334,-460.0,0.00018868,2]
[375957737,1753799443343,-460.0,0.00018868,2]
[375957738,1753799443352,-460.0,0.00018868,2]
[375957739,1753799443361,-460.0,0.00018868,2]
[375957740,1753799443370,-460.0,0.00018868,2]
[375957741,1753799443380,-460.0,0.00018868,2]
[375957742,1753799443389,-460.0,0.00018868,2]
[375957743,1753799443398,-460.0,0.00018868,2]
[375957744,1753799443407,-460.0,0.00018868,2]
[375957745,1753799443418,-205.30662284,0.00018868,2]
[375957746,1753799443428,-460.0,0.00018868,2]
[375957747,1753799443437,-456.70635337,0.00018868,2]
[375957748,1753799443446,-460.0,0.00018868,2]
[375957749,1753799443455,-460.0,0.00018868,2]
[375957750,1753799443464,-460.0,0.00018868,2]
[375957751,1753799443473,-460.0,0.00018868,2]
[375957752,1753799443482,-460.0,0.00018868,2]
[375957753,1753799443494,-2152.37,0.00018868,2]
[375957754,1753799443504,-460.0,0.00018868,2]
[375957755,1753799443513,-460.0,0.00018868,2]
[375957756,1753799443522,-464.78473731,0.00018868,2]
[375957757,1753799443532,-460.0,0.00018868,2]
[375957758,1753799443541,-460.0,0.00018868,2]
[375957759,1753799443550,-460.0,0.00018868,2]
[375957760,1753799443559,-460.0,0.00018868,2]
[375957761,1753799443569,-460.0,0.00018868,2]
[375957762,1753799443578,-460.0,0.00018868,2]
[375957763,1753799443588,-460.0,0.00018868,2]
[375957764,1753799443597,-704.48,0.00018868,2]
[375957765,1753799443606,-460.0,0.00018868,2]
[375957766,1753799443616,-460.0,0.00018868,2]
[375957767,1753799443626,-460.0,0.00018868,2]
[375957768,1753799443635,-455.0,0.00018868,2]
[375957769,1753799443646,-460.0,0.00018868,2]
[375957770,1753799443655,-410.8058977,0.00018868,2]
[375957771,1753799443665,-460.0,0.00018868,2]
[375957772,1753799443674,-460.0,0.00018868,2]
[375957773,1753799443684,-279.36453861,0.00018868,2]
[375957774,1753799443694,-460.0,0.00018868,2]
[375957776,1753799443704,-460.0,0.00018868,2]
[375957778,1753799443714,-460.0,0.00018868,2]
[375957780,1753799443725,-460.0,0.00018868,2]
[375957782,1753799443735,-460.0,0.00018868,2]
[375957784,1753799443747,-460.0,0.00018868,2]
[375957786,1753799443756,-193.60847909,0.00018868,2]
[375957788,1753799443766,-509.65778712,0.00018868,2]
[375957790,1753799443775,-460.0,0.00018868,2]
[375957792,1753799443784,-460.0,0.00018868,2]
[375957794,1753799443793,-460.0,0.00018868,2]
[375957796,1753799443803,-484.58,0.00018868,2]
[375957798,1753799443812,-460.0,0.00018868,2]
[375957800,1753799443822,-388.34279181,0.00018868,2]
[375957802,1753799443831,-460.0,0.00018868,2]
[375957804,1753799443840,-460.0,0.00018868,2]
[375957806,1753799443850,-461.67875321,0.00018868,2]
[375957808,1753799443859,-460.0,0.00018868,2]
[375957810,1753799443869,-2014.91,0.00018868,2]
[375957812,1753799443878,-460.0,0.00018868,2]
[375957814,1753799443887,-877.99,0.00018868,2]
[375957816,1753799443897,-186.05667024,0.00018868,2]
[375957818,1753799443906,-674.59,0.00018868,2]
[375957820,1753799443916,-460.0,0.00018868,2]
[375957822,1753799443925,-460.0,0.00018868,2]
[375957824,1753799443935,-460.0,0.00018868,2]
[375957826,1753799443944,-460.0,0.00018868,2]
[375957828,1753799443954,-562.06501111,0.00018868,2]
[375957830,1753799443963,-460.0,0.00018868,2]
[375957832,1753799443973,-413.5416707,0.00018868,2]
[375957834,1753799443982,-460.0,0.00018868,2]
[375957836,1753799443993,-362.96004219,0.00018868,2]
[375957838,1753799444002,-689.11,0.00018868,2]
[375957840,1753799444012,-460.0,0.00018868,2]
[375957844,1753799444022,-460.0,0.00018868,2]
[375957847,1753799444031,-460.0,0.00018868,2]
[375957850,1753799444040,-460.0,0.00018868,2]
[375957853,1753799444049,-286.67112524,0.00018868,2]
[375957856,1753799444058,-460.0,0.00018868,2]
[375957859,1753799444068,-460.0,0.00018868,2]
[375957862,1753799444077,-460.0,0.00018868,2]
[375957864,1753799444088,-460.0,0.00018868,2]
[375957866,1753799444100,-1008.8,0.00018868,2]
[375957868,1753799444110,-460.0,0.00018868,2]
[375957870,1753799444119,-460.0,0.00018868,2]
[375957873,1753799444129,-460.0,0.00018868,2]
[375957875,1753799444138,-460.0,0.00018868,2]
[375957877,1753799444148,-460.0,0.00018868,2]
[375957879,1753799444157,-460.0,0.00018868,2]
[375957880,1753799444166,-460.0,0.00018868,2]
[375957883,1753799444175,-924.62,0.00018868,2]
[375957884,1753799444185,-460.0,0.00018868,2]
[375957886,1753799444194,-460.0,0.00018868,2]
[375957889,1753799444204,-477.58,0.00018868,2]
[375957890,1753799444213,-460.0,0.00018868,2]
[375957892,1753799444222,-460.0,0.00018868,2]
[375957894,1753799444231,-460.0,0.00018868,2]
[375957896,1753799444242,-377.29454613,0.00018868,2]
[375957899,1753799444251,-699.77,0.00018868,2]
[375957901,1753799444260,-460.0,0.00018868,2]
[375957902,1753799444270,-569.09,0.00018868,2]
[375957904,1753799444279,-460.0,0.00018868,2]
[375957906,1753799444288,-460.0,0.00018868,2]
[375957909,1753799444297,-1367.35,0.00018868,2]
[375957911,1753799444307,-762.62,0.00018868,2]
[375957913,1753799444317,-460.0,0.00018868,2]
[375957915,1753799444326,-460.0,0.00018868,2]
[375957917,1753799444336,-2257.17,0.00018868,2]
[375957919,1753799444345,-472.896692,0.00018868,2]
[375957921,1753799444355,-681.11,0.00018868,2]
[375957923,1753799444364,-414.13773562,0.00018868,2]
[375957925,1753799444373,-460.0,0.00018868,2]
[375957927,1753799444383,-460.0,0.00018868,2]
[375957929,1753799444392,-786.16,0.00018868,2]
[375957931,1753799444401,-2611.66,0.00018868,2]
[375957933,1753799444411,-460.0,0.00018868,2]
[375957935,1753799444420,-460.0,0.00018868,2]
[375957937,1753799444429,-271.75426985,0.00018868,2]
[375957939,1753799444438,-670.67,0.00018868,2]
[375957941,1753799444448,-1694.39,0.00018868,2]
[375957943,1753799444457,-460.0,0.00018868,2]
[375957945,1753799444466,-478.95,0.00018868,2]
[375957947,1753799444475,-460.0,0.00018868,2]
[375957949,1753799444484,-460.0,0.00018868,2]
[375957951,1753799444496,-1770.97,0.00018868,2]
[375957953,1753799444506,-460.0,0.00018868,2]
[375957955,1753799444515,-7068.9,0.00018868,2]
[375957957,1753799444525,-2778.19,0.00018868,2]
[375957959,1753799444534,-222.755139,0.00018869,2]
[375957961,1753799444543,-222.755139,0.00018869,2]
[375957963,1753799444552,-500.0,0.00018873,2]
[375957965,1753799444562,-500.0,0.00018873,2]
[375957967,1753799444571,-500.0,0.00018873,2]
[375957969,1753799444581,-500.0,0.00018873,2]
[375957971,1753799444590,-500.0,0.00018873,2]
[375957973,1753799444600,-500.0,0.00018873,2]
[375957975,1753799444609,-500.15857564,0.00018873,2]
[375957977,1753799444618,-501.53444438,0.00018873,2]
[375957979,1753799444628,-151.0,0.00018873,2]
[375957981,1753799444638,-151.0,0.00018873,2]
[375957984,1753799444650,-1096.056931,0.00018873,2]
[375957986,1753799444660,-1096.056931,0.00018873,2]
[375957988,1753799444669,-213.76096,0.00018873,2]
[375957990,1753799444678,-213.76096,0.00018873,2]
[375957992,1753799444689,-151.0,0.00018873,2]
[375957994,1753799444699,-518.88956016,0.000189,2]
[375957997,1753799444708,-2272.94576218,0.000189,2]
[375958000,1753799444719,-151.0,0.00019041,2]
[375958002,1753799444728,-151.0,0.00019041,2]
[375958005,1753799444741,-301.91613913,0.00019048,2]
[375958006,1753799444750,-182.61176556,0.00019068,3]
[375958008,1753799444760,-151.0,0.00019076,2]
[375958010,1753799444769,-2272.945762,0.00019107,2]
[375958012,1753799444778,-460.0,0.0001914,2]
[375958014,1753799444787,-460.0,0.0001914,2]
[375958017,1753799444797,-460.0,0.0001914,2]
[375958019,1753799444807,-460.0,0.0001914,2]
[375958021,1753799444816,-460.0,0.0001914,2]
[375958023,1753799444826,-523.24,0.0001914,2]
[375958025,1753799444836,-460.0,0.0001914,2]
[375958027,1753799444846,-460.0,0.0001914,2]
[375958029,1753799444855,-460.0,0.0001914,2]
[375958031,1753799444865,-460.0,0.0001914,2]
[375958033,1753799444874,-460.0,0.0001914,2]
[375958035,1753799444884,-593.14,0.0001914,2]
[375958037,1753799444894,-870.03,0.0001914,2]
[375958039,1753799444903,-460.0,0.0001914,2]
[375958041,1753799444912,-196.86234303,0.0001914,2]
[375958043,1753799444922,-460.0,0.0001914,2]
[375958045,1753799444932,-614.06,0.0001914,2]
[375958047,1753799444941,-3102.08,0.0001914,2]
[375958049,1753799444951,-549.83,0.0001914,2]
[375958051,1753799444961,-460.0,0.0001914,2]
[375958053,1753799444970,-460.0,0.0001914,2]
[375958055,1753799444979,-576.12,0.0001914,2]
[375958057,1753799444990,-1169.78,0.0001914,2]
[375958059,1753799444999,-460.0,0.0001914,2]
[375958061,1753799445009,-551.94,0.0001914,2]
[375958063,1753799445018,-197.85259473,0.0001914,2]
[375958065,1753799445027,-460.0,0.0001914,2]
[375958067,1753799445038,-73.47709141,0.0001914,2]
[375958070,1753799445054,-410.84290859,0.0001914,2]
[375958072,1753799445064,-460.0,0.0001914,2]
[375958074,1753799445073,-1293.38942701,0.0001914,2]
[375958098,1753799445299,-304.45739246,0.00018866,2]
[375958250,1753799446991,-155.54260754,0.00018866,2]
[375958252,1753799447002,-1264.55057299,0.0001914,2]
[375958254,1753799447012,-460.0,0.0001914,2]
[375958256,1753799447022,-547.29,0.0001914,2]
[375958258,1753799447032,-460.0,0.0001914,2]
[375958260,1753799447042,-460.0,0.0001914,2]
[375958262,1753799447052,-752.14,0.0001914,2]
[375958264,1753799447063,-460.0,0.0001914,2]
[375958266,1753799447080,-2201.08,0.0001914,2]
[375958269,1753799447090,-1884.9,0.0001914,2]
[375958271,1753799447104,-463.25,0.0001914,2]
[375958272,1753799447116,-825.89,0.0001914,2]
[375958275,1753799447126,-460.0,0.0001914,2]
[375958277,1753799447136,-710.79,0.0001914,2]
[375958279,1753799447146,-151.0,0.00019141,2]
[375958280,1753799447155,-151.0,0.00019141,2]
[375958282,1753799447165,-222.755139,0.00019141,2]
[375958285,1753799447175,-222.755139,0.00019141,2]
[375958286,1753799447184,-148.07870807,0.00019141,2]
[375958359,1753799509097,200.0,0.00018,2]
[375958360,1753799546150,276.0870316,0.00018301,2]
[375958362,1753799635486,4159.76128381,0.0001851,2]
[375958363,1753799848244,165.65221896,0.00018205,2]
[375958367,1753800048947,323.478894,0.00013699,2]
[375958370,1753800058244,24900.0,0.00017866,2]
[375958374,1753800124752,-409.94873247,0.00018765,2]
[375958375,1753800124774,-1200.0,0.00018767,2]
[375958376,1753800124795,-1200.0,0.00018767,2]
[375958377,1753800124817,-300.0,0.00018767,2]
[375958378,1753800124840,-3890.05126753,0.00018768,2]
[375958439,1753800632040,-155.5954302,0.00018668,2]
[375958441,1753800632051,-155.59543019,0.00018756,2]
[375958443,1753800632061,-358.70514092,0.00018756,2]
[375958444,1753800632071,-6247.30195769,0.00018768,2]
[375958446,1753800632081,-744.944,0.00018768,2]
[375958448,1753800632091,-300.0,0.00018799,2]
[375958450,1753800632103,-1200.0,0.00018799,2]
[375958452,1753800632115,-3385.99727124,0.000188,2]
[375958454,1753800632124,-306.0,0.00018854,2]
[375958455,1753800632134,-151.0,0.00018855,2]
[375958457,1753800632143,-500.0,0.00018855,2]
[375958459,1753800632154,-218.0255472,0.00018855,2]
[375958461,1753800632164,-45527.79081168,0.00018856,2]
[375958463,1753800632174,-279.42,0.00018856,3]
[375958465,1753800632185,-232.85,0.00018856,3]
[375958467,1753800632195,-698.59,0.00018856,3]
[375958469,1753800632204,-500.0,0.00018865,2]
[375958471,1753800632214,-202.70749133,0.00018865,2]
[375958472,1753800632224,-176.43797793,0.00018865,2]
[375958474,1753800632234,-500.0,0.00018865,2]
[375958476,1753800632243,-500.0,0.00018865,2]
[375958479,1753800632253,-500.0,0.00018865,2]
[375958482,1753800632262,-500.0,0.00018865,2]
[375958485,1753800632276,-500.0,0.00018865,2]
[375958488,1753800632286,-500.0,0.00018865,2]
[375958491,1753800632295,-500.0,0.00018865,2]
[375958494,1753800632304,-500.0,0.00018865,2]
[375958498,1753800632313,-500.0,0.00018865,2]
[375958500,1753800632323,-500.0,0.00018865,2]
[375958502,1753800632332,-500.0,0.00018865,2]
[375958504,1753800632341,-500.0,0.00018865,2]
[375958506,1753800632351,-500.0,0.00018865,2]
[375958508,1753800632361,-500.0,0.00018865,2]
[375958510,1753800632370,-500.0,0.00018865,2]
[375958512,1753800632379,-500.0,0.00018865,2]
[375958514,1753800632389,-500.0,0.00018865,2]
[375958516,1753800632398,-500.0,0.00018865,2]
[375958518,1753800632408,-500.0,0.00018865,2]
[375958520,1753800632417,-500.0,0.00018865,2]
[375958521,1753800632427,-500.0,0.00018865,2]
[375958523,1753800632436,-500.0,0.00018865,2]
[375958525,1753800632445,-159.10071668,0.00018865,2]
[375958527,1753800632455,-500.0,0.00018865,2]
[375958529,1753800632464,-500.0,0.00018865,2]
[375958531,1753800632473,-500.0,0.00018865,2]
[375958533,1753800632483,-500.0,0.00018865,2]
[375958535,1753800632493,-500.0,0.00018865,2]
[375958537,1753800632503,-500.0,0.00018865,2]
[375958540,1753800632513,-500.0,0.00018865,2]
[375958542,1753800632523,-4232.23348967,0.00018866,2]
[375958544,1753800632532,-460.0,0.00018866,2]
[375958546,1753800632542,-460.0,0.00018866,2]
[375958548,1753800632551,-460.0,0.00018866,2]
[375958549,1753800632560,-460.0,0.00018866,2]
[375958550,1753800632570,-460.0,0.00018866,2]
[375958551,1753800632579,-460.0,0.00018866,2]
[375958552,1753800632588,-460.0,0.00018866,2]
[375958553,1753800632597,-478.90451859,0.00018866,2]
[375958554,1753800632607,-460.0,0.00018866,2]
[375958555,1753800632616,-307.87917077,0.00018866,2]
[375958556,1753800632625,-178.96659893,0.00018866,2]
[375958557,1753800632635,-526.87097118,0.00018866,2]
[375958558,1753800632644,-460.0,0.00018866,2]
[375958559,1753800632653,-461.20281249,0.00018866,2]
[375958560,1753800632662,-460.0,0.00018866,2]
[375958561,1753800632671,-460.0,0.00018866,2]
[375958562,1753800632680,-460.0,0.00018866,2]
[375958563,1753800632689,-460.0,0.00018866,2]
[375958564,1753800632699,-464.18260522,0.00018866,2]
[375958565,1753800632709,-460.0,0.00018866,2]
[375958566,1753800632718,-460.0,0.00018866,2]
[375958567,1753800632727,-460.0,0.00018866,2]
[375958568,1753800632737,-460.0,0.00018866,2]
[375958569,1753800632747,-460.0,0.00018866,2]
[375958570,1753800632756,-460.0,0.00018866,2]
[375958571,1753800632765,-460.62441259,0.00018866,2]
[375958572,1753800632776,-460.0,0.00018866,2]
[375958573,1753800632786,-460.0,0.00018866,2]
[375958575,1753800632795,-460.0,0.00018866,2]
[375958577,1753800632804,-460.0,0.00018866,2]
[375958579,1753800632814,-460.0,0.00018866,2]
[375958581,1753800632823,-460.0,0.00018866,2]
[375958583,1753800632832,-460.0,0.00018866,2]
[375958585,1753800632841,-460.0,0.00018866,2]
[375958587,1753800632850,-460.0,0.00018866,2]
[375958589,1753800632859,-460.0,0.00018866,2]
[375958591,1753800632868,-460.0,0.00018866,2]
[375958593,1753800632879,-460.0,0.00018866,2]
[375958595,1753800632889,-460.0,0.00018866,2]
[375958597,1753800632898,-460.0,0.00018866,2]
[375958599,1753800632908,-460.0,0.00018866,2]
[375958601,1753800632918,-460.0,0.00018866,2]
[375958603,1753800632928,-460.0,0.00018866,2]
[375958605,1753800632938,-259.58364525,0.00018866,2]
[375958608,1753800632953,-277.78592836,0.00018866,2]
[375958610,1753800632963,-99.9932259,0.00018866,2]
[375958612,1753800632976,-360.0067741,0.00018866,2]
[375958614,1753800632987,-460.0,0.00018866,2]
[375958616,1753800632997,-460.0,0.00018866,2]
[375958618,1753800633007,-460.0,0.00018866,2]
[375958620,1753800633016,-460.0,0.00018866,2]
[375958622,1753800633034,-460.0,0.00018866,2]
[375958624,1753800633045,-460.0,0.00018866,2]
[375958626,1753800633055,-460.0,0.00018866,2]
[375958628,1753800633066,-756.48,0.00018866,2]
[375958630,1753800633078,-460.0,0.00018866,2]
[375958632,1753800633088,-325.57932852,0.00018866,2]
[375958634,1753800633098,-416.85995181,0.00018866,2]
[375958637,1753800633111,-436.54004819,0.00018866,2]
[375958639,1753800633122,-460.0,0.00018866,2]
[375958641,1753800633132,-460.0,0.00018866,2]
[375958643,1753800633143,-460.0,0.00018866,2]
[375958645,1753800633153,-460.0,0.00018866,2]
[375958647,1753800633163,-460.0,0.00018866,2]
[375958649,1753800633173,-460.0,0.00018866,2]
[375958651,1753800633183,-584.91286071,0.00018866,2]
[375958652,1753800633193,-460.0,0.00018866,2]
[375958654,1753800633203,-460.0,0.00018866,2]
[375958656,1753800633213,-460.08020547,0.00018866,2]
[375958658,1753800633223,-462.27940581,0.00018866,2]
[375958660,1753800633234,-460.0,0.00018866,2]
[375958661,1753800633245,-460.0,0.00018866,2]
[375958663,1753800633255,-460.0,0.00018866,2]
[375958665,1753800633265,-460.0,0.00018866,2]
[375958667,1753800633280,-460.0,0.00018866,2]
[375958669,1753800633290,-460.0,0.00018866,2]
[375958671,1753800633300,-460.0,0.00018866,2]
[375958673,1753800633310,-460.0,0.00018866,2]
[375958674,1753800633320,-460.0,0.00018866,2]
[375958676,1753800633331,-332.18629561,0.00018866,2]
[375958678,1753800633341,-460.0,0.00018866,2]
[375958680,1753800633352,-460.0,0.00018866,2]
[375958681,1753800633362,-460.0,0.00018866,2]
[375958682,1753800633373,-460.0,0.00018866,2]
[375958683,1753800633383,-460.0,0.00018866,2]
[375958684,1753800633394,-460.0,0.00018866,2]
[375958685,1753800633405,-460.0,0.00018866,2]
[375958686,1753800633416,-460.0,0.00018866,2]
[375958687,1753800633427,-460.0,0.00018866,2]
[375958688,1753800633436,-174.95831635,0.00018866,2]
[375958689,1753800633446,-460.0,0.00018866,2]
[375958690,1753800633456,-460.0,0.00018866,2]
[375958691,1753800633465,-460.0,0.00018866,2]
[375958692,1753800633475,-460.0,0.00018866,2]
[375958693,1753800633485,-460.0,0.00018866,2]
[375958694,1753800633495,-460.0,0.00018866,2]
[375958695,1753800633505,-460.0,0.00018866,2]
[375958696,1753800633515,-460.0,0.00018866,2]
[375958697,1753800633528,-460.0,0.00018866,2]
[375958698,1753800633538,-460.0,0.00018866,2]
[375958699,1753800633548,-1000.0,0.00018866,2]
[375958700,1753800633557,-460.0,0.00018866,2]
[375958701,1753800633567,-460.0,0.00018866,2]
[375958702,1753800633577,-460.0,0.00018866,2]
[375958703,1753800633586,-460.0,0.00018866,2]
[375958704,1753800633596,-460.0,0.00018866,2]
[375958705,1753800633606,-460.0,0.00018866,2]
[375958706,1753800633615,-460.0,0.00018866,2]
[375958707,1753800633625,-460.0,0.00018866,2]
[375958708,1753800633635,-460.0,0.00018866,2]
[375958709,1753800633645,-460.0,0.00018866,2]
[375958710,1753800633654,-460.0,0.00018866,2]
[375958711,1753800633664,-460.0,0.00018866,2]
[375958712,1753800633673,-460.0,0.00018866,2]
[375958713,1753800633682,-461.94036111,0.00018866,2]
[375958714,1753800633691,-516.31793178,0.00018866,2]
[375958715,1753800633871,-460.0,0.00018866,2]
[375958716,1753800633882,-460.0,0.00018866,2]
[375958717,1753800633892,-460.0,0.00018866,2]
[375958718,1753800633902,-460.0,0.00018866,2]
[375958719,1753800633912,-1116.38,0.00018866,2]
[375958720,1753800633922,-509.96,0.00018866,2]
[375958721,1753800633933,-463.64834083,0.00018866,2]
[375958722,1753800633943,-847.11,0.00018866,2]
[375958723,1753800633953,-567.09393117,0.00018866,2]
[375958724,1753800633963,-460.0,0.00018866,2]
[375958725,1753800633973,-460.0,0.00018866,2]
[375958726,1753800633983,-460.0,0.00018866,2]
[375958727,1753800633994,-460.0,0.00018866,2]
[375958728,1753800634004,-460.0,0.00018866,2]
[375958729,1753800634015,-460.0,0.00018866,2]
[375958730,1753800634031,-460.0,0.00018866,2]
[375958731,1753800634041,-460.0,0.00018866,2]
[375958732,1753800634052,-460.0,0.00018866,2]
[375958733,1753800634062,-487.76,0.00018866,2]
[375958734,1753800634074,-460.0,0.00018866,2]
[375958735,1753800634085,-460.0,0.00018866,2]
[375958736,1753800634095,-460.0,0.00018866,2]
[375958737,1753800634108,-460.0,0.00018866,2]
[375958738,1753800634119,-275.42816555,0.00018866,2]
[375958739,1753800634129,-460.0,0.00018866,2]
[375958740,1753800634139,-306.49384973,0.00018866,2]
[375958741,1753800634150,-277.31286915,0.00018866,2]
[375958742,1753800634161,-460.0,0.00018866,2]
[375958743,1753800634171,-460.0,0.00018866,2]
[375958744,1753800634182,-460.0,0.00018866,2]
[375958745,1753800634192,-460.0,0.00018866,2]
[375958746,1753800634203,-460.0,0.00018866,2]
[375958747,1753800634214,-460.0,0.00018866,2]
[375958748,1753800634224,-460.0,0.00018866,2]
[375958749,1753800634235,-460.0,0.00018866,2]
[375958750,1753800634244,-500.0,0.00018866,2]
[375958751,1753800634255,-460.0,0.00018866,2]
[375958752,1753800634265,-460.0,0.00018866,2]
[375958753,1753800634279,-2398.63,0.00018866,2]
[375958754,1753800634290,-460.0,0.00018866,2]
[375958755,1753800634300,-460.0,0.00018866,2]
[375958756,1753800634310,-460.0,0.00018866,2]
[375958757,1753800634319,-460.0,0.00018866,2]
[375958758,1753800634329,-460.0,0.00018866,2]
[375958759,1753800634339,-460.0,0.00018866,2]
[375958760,1753800634349,-460.0,0.00018866,2]
[375958761,1753800634359,-368.79217946,0.00018866,2]
[375958762,1753800634369,-460.0,0.00018866,2]
[375958763,1753800634379,-155.3752953,0.00018866,2]
[375958764,1753800634390,-460.0,0.00018866,2]
[375958765,1753800634400,-460.0,0.00018866,2]
[375958766,1753800634409,-460.0,0.00018866,2]
[375958767,1753800634419,-460.0,0.00018866,2]
[375958768,1753800634429,-460.0,0.00018866,2]
[375958769,1753800634439,-476.89299615,0.00018866,2]
[375958770,1753800634449,-460.0,0.00018866,2]
[375958771,1753800634459,-623.49,0.00018866,2]
[375958772,1753800634469,-460.0,0.00018866,2]
[375958773,1753800634479,-519.03080719,0.00018866,2]
[375958774,1753800634488,-460.0,0.00018866,2]